fUSD/lending_fUSD_20260507
["ID","MTS","AMOUNT","RATE_DAILY","PERIOD"]
[421780674,1778143843000,-1214.4,0.000141,2]
[421780672,1778143843000,-4639.36,0.000141,2]
[421780668,1778143843000,-24476.00557611,0.000141,2]
[421780669,1778143843000,-1326.98,0.000141,2]
[421780667,1778143843000,-963.890001,0.000141,2]
[421780694,1778143843000,-395.0,0.00014863,2]
[421780680,1778143843000,-9999.99,0.00014121,2]
[421780693,1778143843000,-395.0,0.00014823,2]
[421780686,1778143843000,-395.0,0.00014727,2]
[421780696,1778143843000,-395.0,0.00014883,2]
[421780720,1778143843000,-1268.0,0.00018589,2]
[421780718,1778143843000,-624.0,0.00018589,2]
[421780695,1778143843000,-395.0,0.00014864,2]
[421780721,1778143843000,-1221.0,0.00018589,2]
[421780717,1778143843000,-925.0,0.00018589,2]
[421780716,1778143843000,-1352.0,0.00018589,2]
[421780712,1778143843000,-151.1852,0.00016137,2]
[421780711,1778143843000,-300.0,0.00016,2]
[421780708,1778143843000,-300.0,0.0001512,2]
[421780713,1778143843000,-2000.0,0.00017182,2]
[421780715,1778143843000,-350.0,0.00018,2]
[421780714,1778143843000,-212.14,0.000175,2]
[421780719,1778143843000,-2191.759,0.00018589,2]
[421780707,1778143843000,-205.66519879,0.0001512,2]
[421780705,1778143843000,-2500.0,0.0001512,2]
[421780699,1778143843000,-395.0,0.00014941,2]
[421780697,1778143843000,-586.77567015,0.00014896,2]
[421780702,1778143843000,-395.0,0.00014982,2]
[421780700,1778143843000,-395.0,0.00014972,2]
[421780698,1778143843000,-395.0,0.0001493,2]
[421780703,1778143843000,-395.0,0.00014987,2]
[421780704,1778143843000,-1207.34495597,0.0001512,2]
[421780709,1778143843000,-2000.0,0.00015464,2]
[421780706,1778143843000,-250.0,0.0001512,2]
[421780710,1778143843000,-214.67,0.000157,2]
[421780701,1778143843000,-395.0,0.00014981,2]
[421780730,1778143844000,-397.0,0.0002,2]
[421780722,1778143844000,-6044.0,0.00018589,2]
[421780725,1778143844000,-500.0,0.00019178,2]
[421780724,1778143844000,-2000.0,0.000189,2]
[421780723,1778143844000,-929.0,0.00018589,2]
[421780726,1778143844000,-2966.85589121,0.000199,2]
[421780727,1778143844000,-3950.29631301,0.0002,2]
[421780729,1778143844000,-153.0,0.0002,2]
[421780728,1778143844000,-8402.23390043,0.0002,2]
[421780736,1778143844000,-397.0,0.00021,2]
[421780732,1778143844000,-151.0,0.00020381,2]
[421780733,1778143844000,-165.67,0.00020539,2]
[421780734,1778143844000,-2000.0,0.00020619,2]
[421780731,1778143844000,-3166.0,0.0002,2]
[421780737,1778143844000,-228.98513529,0.000212,2]
[421780738,1778143844000,-214.63993676,0.00021248,2]
[421780739,1778143844000,-257.852,0.00021589,2]
[421780741,1778143844000,-4017.9259359,0.00021589,2]
[421780740,1778143844000,-624.0,0.00021589,2]
[421780735,1778143844000,-153.0,0.00021,2]
[421780742,1778143846000,-2024.0740641,0.00021589,2]
[421780744,1778143846000,-104.6436712,0.00021918,2]
[421780743,1778143846000,-927.0,0.00021589,2]
[421780754,1778143915000,1171.249379,0.00029468,120]
[421780755,1778143927000,623.769805,0.0002946,120]
[421780762,1778143966000,6002.55175112,0.0003013,120]
[421780763,1778144033000,171.436077,0.00029436,120]
[421780766,1778144143000,522.879186,0.00029456,120]
[421780767,1778144144000,311.884903,0.00029456,120]
[421780772,1778144381000,196.079695,0.00029008,120]
[421780773,1778144388000,-13000000.0,0.00042249,30]
[421780774,1778144393000,-13000000.0,0.00042249,30]
[421780793,1778144841000,3100.0,0.000117,4]
[421780794,1778144843000,6200.0,0.000118,4]
[421780795,1778144845000,9400.0,0.000119,4]
[421780796,1778144954000,-1200.0,0.00011999,2]
[421780897,1778145056000,-300.0,0.00011999,2]
[421780898,1778145058000,-150.0,0.00011999,2]
[421780900,1778145058000,-300.0,0.000119,2]
[421780899,1778145058000,-150.0,0.00011999,2]
[421780902,1778145059000,-300.0,0.000119,2]
[421780901,1778145059000,-300.0,0.000119,2]
[421780903,1778145060000,-300.0,0.00011899,2]
[421780904,1778145061000,-300.0,0.00011899,2]
[421780912,1778145062000,-2166.28575019,0.000119,2]
[421780905,1778145062000,-600.0,0.00011899,2]
[421780906,1778145062000,-80488.96045084,0.000119,2]
[421780908,1778145062000,-26443.04900393,0.000119,2]
[421780907,1778145062000,-264251.65557898,0.000119,2]
[421780909,1778145062000,-347.8503141,0.000119,2]
[421780910,1778145062000,-300.0,0.000119,2]
[421780911,1778145062000,-500.0,0.00011899,2]
[421780921,1778145062000,-13980.20546219,0.000119,2]
[421780915,1778145062000,-2008.31450221,0.000119,2]
[421780914,1778145062000,-359.96230042,0.000119,2]
[421780916,1778145062000,-1193.48095674,0.000119,2]
[421780917,1778145062000,-2184.34232518,0.000119,2]
[421780918,1778145062000,-26403.79226853,0.000119,2]
[421780919,1778145062000,-866.12932493,0.000119,2]
[421780920,1778145062000,-2287.50356674,0.000119,2]
[421780913,1778145062000,-22238.65313993,0.000119,2]
[421780922,1778145063000,-335.38,0.000119,2]
[421780923,1778145063000,-1300.04848695,0.000119,2]
[421780924,1778145063000,-9378.17587213,0.000119,2]
[421780926,1778145063000,-6062.68776504,0.000119,2]
[421780925,1778145063000,-300.0,0.000119,2]
[421780929,1778145063000,-1955.82874103,0.000119,2]
[421780928,1778145063000,-652.9978648,0.000119,2]
[421780930,1778145063000,-3445.55045774,0.000119,2]
[421780931,1778145063000,-22175.18611826,0.000119,2]
[421780932,1778145063000,-2243.1639466,0.000119,2]
[421780927,1778145063000,-2786.293386,0.000119,2]
[421780933,1778145129000,150.0,0.00030137,120]
[421780936,1778145286000,193.576346,0.00023967,120]
[421780939,1778145728000,-1535.514,0.00011662,2]
[421780940,1778145728000,-162.501,0.00011662,2]
[421780941,1778145728000,-250.0,0.00011697,2]
[421780942,1778145728000,-217.10857529,0.00011765,2]
[421780943,1778145728000,-480.0,0.00011799,2]
[421780944,1778145728000,-150.0,0.00011799,2]
[421780945,1778145728000,-11029.58926934,0.000118,2]
[421780947,1778145728000,-6125.29777997,0.000118,2]
[421780946,1778145728000,-2500.0,0.000118,2]
[421780948,1778145728000,-633549.9893754,0.000119,2]
[421780950,1778145778000,1059.59351199,0.00011999,3]
[421780949,1778145778000,1059.59351199,0.00011999,3]
[421780951,1778145834000,167.0,0.00012,3]
[421780953,1778145847000,5000.01,7.945e-05,2]
[421780952,1778145847000,5000.01,7.945e-05,2]
[421780954,1778145847000,5000.01,7.945e-05,2]
[421780956,1778145847000,5000.01,7.945e-05,2]
[421780958,1778145847000,5000.01,7.945e-05,2]
[421780959,1778145847000,468.582593,7.945e-05,2]
[421780957,1778145847000,5000.01,7.945e-05,2]
[421780955,1778145847000,5000.01,7.945e-05,2]
[421780965,1778146032000,2200.0,0.000117,4]
[421780966,1778146034000,4400.0,0.000118,4]
[421780967,1778146036000,6600.0,0.000119,4]
[421780969,1778146053000,2036.62420232,0.00030137,120]
[421780972,1778146167000,-150.0,0.00011799,2]
[421780976,1778146224000,-300.0,0.00011799,2]
[421780978,1778146225000,-50.0,0.000118,2]
[421780977,1778146225000,-250.0,0.000118,2]
[421780979,1778146225000,-9876.63034246,0.000118,2]
[421780984,1778146225000,-300.0,0.00011898,2]
[421780981,1778146225000,-6978.51914513,0.000118,2]
[421780983,1778146225000,-1760.7036,0.000118,2]
[421780982,1778146225000,-810.57746091,0.000118,2]
[421780980,1778146225000,-123.36965754,0.000118,2]
[421780985,1778146226000,-300.0,0.00011899,2]
[421780986,1778146226000,152.0,0.00011579,2]
[421780989,1778146226000,152.0,0.00011728,7]
[421780987,1778146226000,152.0,0.00011728,7]
[421780988,1778146226000,-300.0,0.00011899,2]
[421781025,1778146233000,-653.41201536,0.00011999,2]
[421781014,1778146233000,-653.41201536,0.00011999,2]
[421781012,1778146233000,-653.41201536,0.00011999,2]
[421781011,1778146233000,-653.41201536,0.00011999,2]
[421781010,1778146233000,-653.41201536,0.00011999,2]
[421781013,1778146233000,-653.41201536,0.00011999,2]
[421781017,1778146233000,-653.41201536,0.00011999,2]
[421781027,1778146233000,-653.41201536,0.00011999,2]
[421781018,1778146233000,-653.41201536,0.00011999,2]
[421781023,1778146233000,-653.41201536,0.00011999,2]
[421781021,1778146233000,-653.41201536,0.00011999,2]
[421781020,1778146233000,-653.41201536,0.00011999,2]
[421781022,1778146233000,-653.41201536,0.00011999,2]
[421781024,1778146233000,-653.41201536,0.00011999,2]
[421781030,1778146233000,-653.41201536,0.00011999,2]
[421781008,1778146233000,-653.41201536,0.00011999,2]
[421781019,1778146233000,-653.41201536,0.00011999,2]
[421781009,1778146233000,-653.41201536,0.00011999,2]
[421781006,1778146233000,-653.41201536,0.00011999,2]
[421781026,1778146233000,-653.41201536,0.00011999,2]
[421780994,1778146233000,-410.50654426,0.00011899,2]
[421780996,1778146233000,-490.3406909,0.000119,2]
[421780995,1778146233000,-2000.0,0.000119,2]
[421780997,1778146233000,-277.66822851,0.0001199,2]
[421780998,1778146233000,-150.0,0.00011999,2]
[421781002,1778146233000,-653.41201536,0.00011999,2]
[421780999,1778146233000,-501.4022452,0.00011999,2]
[421781001,1778146233000,-653.41201536,0.00011999,2]
[421781003,1778146233000,-653.41201536,0.00011999,2]
[421781000,1778146233000,-653.41201536,0.00011999,2]
[421781005,1778146233000,-653.41201536,0.00011999,2]
[421781004,1778146233000,-653.41201536,0.00011999,2]
[421781016,1778146233000,-653.41201536,0.00011999,2]
[421781015,1778146233000,-653.41201536,0.00011999,2]
[421781007,1778146233000,-653.41201536,0.00011999,2]
[421781028,1778146233000,-653.41201536,0.00011999,2]
[421781064,1778146233000,-648.07803973,0.00011999,2]
[421781031,1778146233000,-653.41201536,0.00011999,2]
[421781060,1778146233000,-648.07803973,0.00011999,2]
[421781062,1778146233000,-648.07803973,0.00011999,2]
[421781072,1778146233000,-648.07803973,0.00011999,2]
[421781074,1778146233000,-648.07803973,0.00011999,2]
[421781029,1778146233000,-653.41201536,0.00011999,2]
[421781079,1778146233000,-285.36210215,0.00011999,2]
[421781092,1778146233000,-648.07803973,0.00011999,2]
[421781058,1778146233000,-648.07803973,0.00011999,2]
[421781088,1778146233000,-648.07803973,0.00011999,2]
[421781090,1778146233000,-648.07803973,0.00011999,2]
[421781086,1778146233000,-648.07803973,0.00011999,2]
[421781093,1778146233000,-648.07803973,0.00011999,2]
[421781096,1778146233000,-648.07803973,0.00011999,2]
[421781098,1778146233000,-648.07803973,0.00011999,2]
[421781081,1778146233000,-159.0043586,0.00011999,2]
[421781097,1778146233000,-648.07803973,0.00011999,2]
[421781084,1778146233000,-489.07368113,0.00011999,2]
[421781056,1778146233000,-648.07803973,0.00011999,2]
[421781076,1778146233000,-362.71593758,0.00011999,2]
[421781070,1778146233000,-648.07803973,0.00011999,2]
[421781032,1778146233000,-653.41201536,0.00011999,2]
[421781068,1778146233000,-648.07803973,0.00011999,2]
[421781034,1778146233000,-653.41201536,0.00011999,2]
[421781035,1778146233000,-653.41201536,0.00011999,2]
[421781044,1778146233000,-500.21514319,0.00011999,2]
[421781046,1778146233000,-648.07803973,0.00011999,2]
[421781050,1778146233000,-648.07803973,0.00011999,2]
[421781048,1778146233000,-648.07803973,0.00011999,2]
[421781033,1778146233000,-653.41201536,0.00011999,2]
[421781040,1778146233000,-653.41201536,0.00011999,2]
[421781038,1778146233000,-653.41201536,0.00011999,2]
[421781042,1778146233000,-653.41201536,0.00011999,2]
[421781052,1778146233000,-648.07803973,0.00011999,2]
[421781054,1778146233000,-648.07803973,0.00011999,2]
[421781066,1778146233000,-648.07803973,0.00011999,2]
[421781036,1778146233000,-653.41201536,0.00011999,2]
[421781099,1778146234000,-648.07803973,0.00011999,2]
[421781101,1778146234000,-648.07803973,0.00011999,2]
[421781111,1778146234000,-159384.84301664,0.00012,2]
[421781100,1778146234000,-648.07803973,0.00011999,2]
[421781103,1778146234000,-648.07803973,0.00011999,2]
[421781105,1778146234000,-648.07803973,0.00011999,2]
[421781107,1778146234000,-648.07803973,0.00011999,2]
[421781132,1778146234000,-242056.74757893,0.00012,2]
[421781133,1778146234000,-1254.41808677,0.00012,2]
[421781134,1778146234000,-1351.1837267,0.00012,2]
[421781109,1778146234000,-4798.17640939,0.00012,2]
[421781136,1778146235000,1374.41909153,0.00011799,2]
[421781135,1778146235000,298.19979396,0.00011799,2]
[421781137,1778146238000,-1830.73949245,0.00012,2]
[421781138,1778146238000,-816.62506821,0.00012,2]
[421781143,1778146238000,-380.52932165,0.00012,2]
[421781140,1778146238000,-69935.40988944,0.00012,2]
[421781142,1778146238000,-26403.79226853,0.00012,2]
[421781139,1778146238000,-3802.00789222,0.00012,2]
[421781146,1778146240000,-1214.535,0.00012,2]
[421781157,1778146242000,2000.0,0.000118,2]
[421781163,1778146243000,-621.66646286,0.00012,2]
[421781162,1778146243000,-529084.38955081,0.00012,2]
[421781171,1778146246000,-1856.91790663,0.00012,2]
[421781172,1778146246000,-5483.12614649,0.00012,2]
[421781170,1778146246000,-168.85709337,0.00011999,2]
[421781168,1778146246000,-500.0,0.00011999,2]
[421781169,1778146246000,-38.85520632,0.00012,2]
[421781167,1778146246000,-21.20868821,0.00012,2]
[421781166,1778146246000,-3749.9135,0.00012,2]
[421781175,1778146268000,2500.0,0.000118,2]
[421781177,1778146288000,157.568,0.0001176,2]
[421781176,1778146288000,1979.975,0.0001176,2]
[421781178,1778146295000,152.0,0.00012001,7]
[421781183,1778146301000,1832.15,7.052e-05,2]
[421781182,1778146301000,1676.26209153,6.716e-05,2]
[421781181,1778146301000,155.88790847,6.716e-05,2]
[421781180,1778146301000,1832.15,6.38e-05,2]
[421781188,1778146302000,837.01209153,8.395e-05,2]
[421781187,1778146302000,995.13790847,8.395e-05,2]
[421781186,1778146302000,1832.15,8.059e-05,2]
[421781185,1778146302000,1832.15,7.724e-05,2]
[421781184,1778146302000,1832.15,7.388e-05,2]
[421781192,1778146303000,1832.15,9.738e-05,2]
[421781191,1778146303000,1832.15,9.403e-05,2]
[421781190,1778146303000,1832.15,9.067e-05,2]
[421781189,1778146303000,1832.15,8.731e-05,2]
[421781193,1778146304000,1832.15,0.00010074,2]
[421781197,1778146304000,1832.15,0.00010746,2]
[421781195,1778146304000,1829.91209153,0.0001041,2]
[421781194,1778146304000,2.23790847,0.0001041,2]
[421781200,1778146305000,1832.15,0.00011753,2]
[421781199,1778146305000,1832.15,0.00011417,2]
[421781198,1778146305000,1832.15,0.00011082,2]
[421781201,1778146414000,601.9733712,0.000118,2]
[421781202,1778146467000,167.0,0.00012,3]
[421781203,1778146497000,310.0,0.00012,3]
[421781204,1778146505000,7480.76987014,0.00030136,120]
[421781205,1778146574000,-601.97337118,0.0001185,2]
[421781206,1778146603000,30000.0,0.00030136,120]
[421781207,1778146614000,200.0,0.000118,4]
[421781208,1778146616000,500.0,0.000119,4]
[421781209,1778146628000,152.0,0.00011581,2]
[421781210,1778146671000,4407.25174913,0.00011799,2]
[421781211,1778146723000,668.15208464,0.000118,2]
[421781212,1778146729000,668.15208462,0.0001185,2]
[421781214,1778146874000,310.0,0.00012,3]
[421781216,1778146935000,602.57091286,0.00011726,2]
[421781215,1778146935000,500.0,0.00011726,2]
[421781218,1778146936000,154.70629453,0.00011726,2]
[421781217,1778146936000,150.0,0.00011726,2]
[421781220,1778147032000,200.0,0.00011338,2]
[421781221,1778147033000,222.71736154,0.00011799,2]
[421781222,1778147039000,222.71736154,0.0001185,2]
[421781223,1778147061000,-250.0,0.00011882,2]
[421781224,1778147176000,1449.75877996,0.00011747,2]
[421781226,1778147176000,239.51453727,0.00011747,2]
[421781225,1778147176000,10000.0,0.00011747,2]
[421781230,1778147176000,3982.81668277,0.00011747,2]
[421781227,1778147176000,10000.0,0.00011747,2]
[421781228,1778147176000,10000.0,0.00011747,2]
[421781229,1778147176000,10000.0,0.00011747,2]
[421781231,1778147197000,152.0,0.00012003,7]
[421781232,1778147198000,152.0,0.00012003,7]
[421781233,1778147222000,1800.0,0.000118,4]
[421781235,1778147225000,3257.18702398,0.000119,4]
[421781234,1778147225000,342.81297602,0.000119,4]
[421781236,1778147248000,310.0,0.00012,3]
[421781237,1778147270000,152.0,0.00012001,7]
[421781238,1778147360000,222.71736154,0.00011795,2]
[421781239,1778147412000,178.82,0.00011717,2]
[421781249,1778147432000,-170.02989251,0.000119,2]
[421781255,1778147432000,-151.0,0.00011945,2]
[421781254,1778147432000,-151.0,0.00011945,2]
[421781253,1778147432000,-200.0,0.00011945,2]
[421781251,1778147432000,-5000.0,0.000119,2]
[421781250,1778147432000,-6391.69992234,0.000119,2]
[421781245,1778147432000,-150.0,0.00011899,2]
[421781244,1778147432000,-1200.0,0.00011898,2]
[421781248,1778147432000,-1730.1323,0.000119,2]
[421781247,1778147432000,-504.91,0.000119,2]
[421781242,1778147432000,-250.0,0.00011858,2]
[421781243,1778147432000,-1988.24523741,0.0001189,2]
[421781256,1778147432000,-151.0,0.00011945,2]
[421781241,1778147432000,-1469.87330958,0.00011826,2]
[421781240,1778147432000,-530.12669042,0.00011826,2]
[421781246,1778147432000,-150.0,0.00011899,2]
[421781258,1778147432000,-500.0,0.00011945,2]
[421781252,1778147432000,-153.12137068,0.0001194,2]
[421781260,1778147432000,-247.91822085,0.0001199,2]
[421781257,1778147432000,-166.00695375,0.00011945,2]
[421781281,1778147432000,-791.08135771,0.00011998,2]
[421781280,1778147432000,-8650.35873884,0.00011998,2]
[421781282,1778147432000,-46249.57474151,0.00011998,2]
[421781278,1778147432000,-1000.0,0.00011998,2]
[421781276,1778147432000,-500.0,0.00011997,2]
[421781277,1778147432000,-500.0,0.00011997,2]
[421781267,1778147432000,-500.0,0.00011997,2]
[421781279,1778147432000,-1349.63126116,0.00011998,2]
[421781270,1778147432000,-500.0,0.00011997,2]
[421781273,1778147432000,-500.0,0.00011997,2]
[421781261,1778147432000,-500.0,0.00011997,2]
[421781263,1778147432000,-153.61447723,0.00011997,2]
[421781266,1778147432000,-441.35918119,0.00011997,2]
[421781259,1778147432000,-2080.17592889,0.00011945,2]
[421781274,1778147432000,-500.0,0.00011997,2]
[421781272,1778147432000,-500.0,0.00011997,2]
[421781262,1778147432000,-500.0,0.00011997,2]
[421781297,1778147438000,-500.0,0.00011997,2]
[421781301,1778147438000,-500.0,0.00011997,2]
[421781299,1778147438000,-500.0,0.00011997,2]
[421781300,1778147438000,-500.0,0.00011997,2]
[421781305,1778147438000,-500.0,0.00011997,2]
[421781298,1778147438000,-500.0,0.00011997,2]
[421781296,1778147438000,-500.0,0.00011997,2]
[421781304,1778147438000,-500.0,0.00011997,2]
[421781288,1778147438000,-446.66736,0.00011997,2]
[421781295,1778147438000,-500.0,0.00011997,2]
[421781294,1778147438000,-500.0,0.00011997,2]
[421781293,1778147438000,-500.0,0.00011997,2]
[421781292,1778147438000,-500.0,0.00011997,2]
[421781291,1778147438000,-500.0,0.00011997,2]
[421781290,1778147438000,-500.0,0.00011997,2]
[421781302,1778147438000,-500.0,0.00011997,2]
[421781303,1778147438000,-500.0,0.00011997,2]
[421781306,1778147438000,-38.66736,0.00011997,2]
[421781289,1778147438000,-53.33264,0.00011997,2]
[421781308,1778147438000,-38.07271172,0.00011997,2]
[421781320,1778147438000,-157.568,0.00011999,2]
[421781322,1778147438000,-299.99,0.00011999,2]
[421781319,1778147438000,-1583.98,0.00011999,2]
[421781321,1778147438000,-150.99,0.00011999,2]
[421781324,1778147438000,-9999.99,0.00011999,2]
[421781318,1778147438000,-9999.99,0.00011998,2]
[421781314,1778147438000,-23941.86498025,0.00011998,2]
[421781317,1778147438000,-999.99,0.00011998,2]
[421781307,1778147438000,-461.33264,0.00011997,2]
[421781327,1778147438000,-59224.70416557,0.00012,2]
[421781326,1778147438000,-170.0,0.00011999,2]
[421781315,1778147438000,-380.52932165,0.00011998,2]
[421781312,1778147438000,-500.0,0.00011997,2]
[421781313,1778147438000,-500.0,0.00011997,2]
[421781311,1778147438000,-500.0,0.00011997,2]
[421781309,1778147438000,-461.92728828,0.00011997,2]
[421781310,1778147438000,-500.0,0.00011997,2]
[421781316,1778147438000,-57758.14959888,0.00011998,2]
[421781530,1778147440000,-688.8580236,0.00012,2]
[421781572,1778147440000,-100942.4664434,0.00012,2]
[421781546,1778147440000,-746.1227719,0.00012,2]
[421781585,1778147441000,-1430.67954418,0.00012,2]
[421781573,1778147441000,-1149.11159905,0.00012,2]
[421781641,1778147444000,-397738.91217953,0.00012,2]
[421781638,1778147444000,-1590.0,0.00012,2]
[421781689,1778147446000,-2945.519622,0.00012,2]
[421781690,1778147446000,-5227.26542733,0.00012,2]
[421781692,1778147446000,-2022.025,0.00012,2]
[421781691,1778147446000,-157379.93605359,0.00012,2]
[421781693,1778147447000,-1782.59522806,0.00012,2]
[421781698,1778147447000,-16084.00055325,0.00012,2]
[421781695,1778147447000,-108058.53913516,0.00012,2]
[421781697,1778147447000,-24397.35920982,0.00012,2]
[421781696,1778147447000,-150.0,0.00012,2]
[421781694,1778147447000,-301.0575994,0.00012,2]
[421781723,1778147491000,-2000.0,0.000119,2]
[421781724,1778147627000,310.0,0.00012,3]
[421781725,1778147685000,-300.0,0.00011899,2]
[421781730,1778147743000,-150.0,0.00011899,2]
[421781729,1778147743000,-150.0,0.00011899,2]
[421781728,1778147743000,-150.0,0.000119,2]
[421781727,1778147743000,-150.0,0.00011899,2]
[421781731,1778147744000,-150.0,0.00011899,2]
[421781732,1778147754000,173.0,0.00012,3]
[421781733,1778147757000,967.326,0.00030137,120]
[421781734,1778147838000,310.0,0.00012,3]
[421781736,1778147949000,165.96,7.123e-05,2]
[421781735,1778147949000,165.96,6.331e-05,2]
[421781740,1778147950000,165.96,0.00010288,2]
[421781739,1778147950000,165.96,9.497e-05,2]
[421781738,1778147950000,165.96,8.706e-05,2]
[421781737,1778147950000,165.96,7.914e-05,2]
[421781741,1778147966000,-165.96,0.0001108,2]
[421781743,1778148000000,-165.96,0.00011899,2]
[421781742,1778148000000,-165.96,0.00011871,2]
[421781744,1778148001000,-165.96,0.00011899,2]
[421781747,1778148153000,4655.81405276,8e-05,2]
[421781746,1778148153000,4004.25,8e-05,2]
[421781750,1778148236000,262.35823852,0.000101,2]
[421781751,1778148267000,-551.05272724,0.00011,2]
[421781754,1778148325000,-69.46,0.00011776,2]
[421781753,1778148325000,-200.0,0.00011615,2]
[421781758,1778148326000,-269.46,0.00011799,2]
[421781757,1778148326000,9996.08,0.0003,120]
[421781756,1778148326000,-69.46,0.00011799,2]
[421781755,1778148326000,-200.0,0.00011776,2]
[421781761,1778148327000,-108.38,0.0001188,2]
[421781762,1778148327000,81.83770872,7.888e-05,2]
[421781760,1778148327000,-161.08,0.00011799,2]
[421781764,1778148327000,-41.62,0.0001188,2]
[421781765,1778148327000,-227.84,0.00011899,2]
[421781763,1778148327000,313.1315854,7.888e-05,2]
[421781766,1778148328000,1093.8672339,0.00011999,3]
[421781769,1778148333000,2289.51717364,0.0001,2]
[421781768,1778148333000,5000.01,0.0001,2]
[421781767,1778148333000,5000.01,0.0001,2]
[421781770,1778148335000,310.0,0.00012,3]
[421781771,1778148339000,800.81694565,9.04e-05,2]
[421781775,1778148440000,3200.0,0.000118,4]
[421781774,1778148440000,1600.0,0.000117,4]
[421781776,1778148441000,4800.0,0.000119,4]
[421781777,1778148447000,2000.0,0.0003013,120]
[421781779,1778148454000,1100.0,0.000117,4]
[421781780,1778148456000,2300.0,0.000118,4]
[421781781,1778148458000,3400.0,0.000119,4]
[421781783,1778148580000,-151.0,0.00010697,2]
[421781816,1778148731000,-150.0,0.00010698,2]
[421781815,1778148731000,-150.0,0.00010698,2]
[421781817,1778148731000,2067.0,0.00012,5]
[421781818,1778148732000,-150.0,0.00010698,2]
[421781836,1778148733000,-3141.73,0.00011767,2]
[421781835,1778148733000,-4999.99,0.00011767,2]
[421781845,1778148733000,-3128.3117544,0.00011998,2]
[421781844,1778148733000,-151.0,0.00011997,2]
[421781834,1778148733000,-150.99,0.00011767,2]
[421781833,1778148733000,-299.99,0.00011767,2]
[421781827,1778148733000,-1466.33,0.0001153,2]
[421781831,1778148733000,-1558.29748271,0.00011767,2]
[421781828,1778148733000,-10281.99,0.00011579,2]
[421781826,1778148733000,-13583.23282545,0.0001143,2]
[421781830,1778148733000,-234.0170913,0.00011767,2]
[421781823,1778148733000,-247678.9326475,0.000107,2]
[421781825,1778148733000,-991.91,0.00011355,2]
[421781821,1778148733000,-750.0,0.00010698,2]
[421781824,1778148733000,-2000.0,0.00011185,2]
[421781832,1778148733000,-250.0,0.00011767,2]
[421781822,1778148733000,-100.0,0.00010698,2]
[421781820,1778148733000,-150.0,0.00010698,2]
[421781819,1778148733000,-150.0,0.00010698,2]
[421781838,1778148733000,-1993.93719286,0.00011897,2]
[421781829,1778148733000,-255.0,0.00011736,2]
[421781842,1778148733000,-2876.26496512,0.000119,2]
[421781856,1778148733000,-124833.93562294,0.00012,2]
[421781837,1778148733000,-1680.0,0.00011768,2]
[421781862,1778148733000,-9378.05349123,0.00012,2]
[421781863,1778148733000,-2088.11203752,0.00012,2]
[421781840,1778148733000,-9999.99,0.00011899,2]
[421781859,1778148733000,-1492.42537385,0.00012,2]
[421781860,1778148733000,-26403.79226853,0.00012,2]
[421781858,1778148733000,-24786.90391662,0.00012,2]
[421781853,1778148733000,-3277.0262354,0.00012,2]
[421781854,1778148733000,-114093.0461888,0.00012,2]
[421781852,1778148733000,-7367.3710129,0.00012,2]
[421781857,1778148733000,-66512.19358273,0.00012,2]
[421781861,1778148733000,-380.52932165,0.00012,2]
[421781855,1778148733000,-96304.58067105,0.00012,2]
[421781846,1778148733000,-67077.0345805,0.00011998,2]
[421781848,1778148733000,-505.9,0.00011999,2]